Cogmind - Beta 17.1 @@@ ROGUE MODE // 2026.09.04 @ 17:23:47 Player: C0-2MO Result: Destroyed by K3-ZNJ(R) with Subdweller Machine Gun Performance ------------- Evolutions (0) 0 Regions Visited (2) 400 Robots Destroyed (23) 115 Value Destroyed (540) 540 Prototype IDs (2) 40 Alien Tech Used (0) 0 Bonus (5400) 5400 TOTAL SCORE: 6495 Bonus ------- Prayed to X0-1V1 5000 Major X0-1V1 Interference 400 Cogmind --------- Core Integrity 0/250 Matter 300/300 Energy 100/100 System Corruption 6% Temperature Cool (0) Movement Core (50) Location -10/Subcaves Parts ------- > --- POWER (1) -------- (None) > --- PROPULSION (2) --- (None) > --- UTILITY (2) ------ X0-1V1's Piety Tracker > --- WEAPON (2) ------- Mining Claw > --- INVENTORY (5) ---- Light Ion Engine Flight Unit Grenade Launcher Peak State ------------ > --- POWER ------------ (None) > --- PROPULSION ------- Flight Unit Flight Unit > --- UTILITY ---------- X0-1V1's Piety Tracker > --- WEAPON ----------- Improved Assault Rifle Mining Claw > --- INVENTORY -------- Light Ion Engine Flight Unit Flight Unit Grenade Launcher Explosive Trap [Rating: 19] Favorites ----------- Power Light Ion Engine Engine Light Ion Engine Propulsion Light Treads Treads Light Treads Flight Unit Flight Unit Utility Seismic Detector Device Seismic Detector Storage Medium Storage Unit Processor Terrain Scan Processor Protection Scrap Shield Weapon Improved Assault Rifle Ballistic Gun Improved Assault Rifle Launcher Grenade Launcher Slashing Weapon Mining Claw Build | -11 -10 -10 ------- Run | Yrd Mat Sub Slots Evolved . | . . . Power . | . . . Propulsion . | . . . Utility . | . . . Weapon . | . . . Parts Attached 20 | 4 11 5 Power 1 | . 1 . Engine 1 | . 1 . Core . | . . . Reactor . | . . . Propulsion 6 | 2 1 3 Treads 3 | 2 1 . Leg . | . . . Wheel . | . . . Hover . | . . . Flight 3 | . . 3 Utility 5 | 1 3 1 Device 2 | 1 . 1 Storage 1 | . 1 . Processor 1 | . 1 . Hackware . | . . . Protection 1 | . 1 . Artifact . | . . . Weapon 8 | 1 6 1 Energy Gun . | . . . Energy Cannon . | . . . Ballistic Gun 6 | 1 5 . Ballistic Cannon . | . . . Launcher 1 | . 1 . Special Weapon . | . . . Impact Weapon . | . . . Slashing Weapon 1 | . . 1 Piercing Weapon . | . . . Special Melee Weapon . | . . . Unidentified Prototypes 2 | . 1 1 Parts Lost 5 | . . 5 Power . | . . . Propulsion 3 | . . 3 Utility 1 | . . 1 Weapon 1 | . . 1 Highest Loss Streak 3 | . . 3 To Critical Strikes . | . . . Average Backups 3 | . 4 4 Power . | . . . Propulsion . | . . 1 Utility . | . 1 . Weapon 2 | . 3 1 Tool/Special . | . . . Unused Backups 6 | . 4 2 Power . | . . . Propulsion 1 | . . 1 Utility 2 | . 2 . Weapon 3 | . 2 1 Tool/Special . | . . . Average Slot Usage (%) 55 | . 53 65 Engine 1 | . . 4 Treads 23 | . 27 9 Flight 3 | . . 15 Device 5 | . 5 6 Protection 1 | . 1 2 Ballistic Gun 18 | . 18 18 Slashing Weapon 1 | . . 8 Peak Build Rating 19 | 4 13 19 Average Rating 6 | 2 5 12 On Entrance 5 | . 4 13 Avg Prop Armor Cover (%) 29 | 32 28 . Naked Turns . | . . . Heaviest Build 27 | 3 27 27 Greatest Support 40 | 3 40 40 Greatest Overweight (x) 1 | . 1 . Average Overweight (x) . | . . . Largest Inventory Capacity 10 | 5 10 5 Average Capacity 5 | 5 5 5 Most Carried 5 | 1 5 5 Average Carried 4 | . 4 4 Final Capacity 5 | 5 5 5 Final Carried 5 | 1 5 3 Class Distribution -------------------- 100% | Mutant Dominant Class ---------------- Mutant | -10/Materials Mutant | -10/Subcaves Resources | -11 -10 -10 ----------- Run | Yrd Mat Sub Matter Collected 928 | 294 513 121 Remotely . | . . . Salvage Created 711 | 118 450 143 Parts 50 | 10 29 11 Haulers Intercepted 2 | . 2 . Recyclers Shooed . | . . . Parts Field Recycled . | . . . Retrieved Matter . | . . . Parts Self-Destructed 3 | . . 3 Prevented . | . . . Parts Restored . | . . . Kills | -11 -10 -10 ------- Run | Yrd Mat Sub Combat Hostiles Destroyed 16 | . 11 5 Guns 11 | . 6 5 AOE 5 | . 5 . Classes Destroyed 7 | 2 5 . Tunneler 2 | 2 . . Hauler 2 | . 2 . Recycler 1 | 1 . . Watcher 2 | . 2 . Swarmer 5 | . 3 2 Grunt 7 | . 7 . Subdweller 4 | . 1 3 Best Kill Streak 11 | 3 11 5 Combat Bots Only 10 | . 10 5 Max Kills in Single Turn 2 | 1 2 1 Gunslinging . | . . . Exploded 2 | . 2 . Melee . | . . . Uniques/NPCs Destroyed . | . . . Combat | -11 -10 -10 -------- Run | Yrd Mat Sub Hostile Shots Fired 88 | . 34 54 Missed 23 | . 10 13 Hits 65 | . 24 41 Projectile 65 | . 24 41 Critical Strikes 3 | . . 3 Damage Taken 1119 | . 320 799 Core 252 | . 34 218 Absorbed by Shields . | . . . Regen/Repaired (Parts) 122 | . 122 . Core Remaining (%) 100 | 100 . . Volleys Fired 105 | 18 71 16 Largest 2 | 1 2 2 Hottest 46 | 20 46 46 Shots Fired 135 | 18 90 27 Gun 131 | 18 86 27 Cannon . | . . . Launcher 4 | . 4 . Special . | . . . Kinetic 131 | 18 86 27 Thermal . | . . . Explosive 4 | . 4 . Electromagnetic . | . . . Robot Hit Streak 13 | 5 12 13 Robot Miss Streak 5 | 5 5 2 Penetration Max . | . . . Secondary Targets 2 | . 1 1 Max Gunslinging Chain 1 | . 1 1 Shots Hit Robots 94 | 11 52 31 Core Hits 38 | 4 26 8 Critical Kills . | . . . Critical Parts Destroyed . | . . . Critical Strikes . | . . . Melee Attacks 19 | . . 19 Impact . | . . . Slashing 19 | . . 19 Piercing . | . . . Sneak Attacks 1 | . . 1 Combat Hostiles . | . . . Follow-up Attacks . | . . . Damage Inflicted 1802 | 150 1084 568 Guns 1179 | 150 706 323 Cannons . | . . . Explosions 378 | . 378 . Melee 245 | . . 245 Ramming . | . . . Kinetic 1179 | 150 706 323 Thermal . | . . . Explosive 378 | . 378 . Electromagnetic . | . . . Impact . | . . . Slashing 245 | . . 245 Piercing . | . . . Highest Corruption 6 | . 4 6 Average Corruption 4 | . 4 5 Corruption Purged . | . . . Corruption Blocked . | . . . Effects 15 | . 10 5 Message Errors 2 | . 1 1 Matter Fused 3 | . 3 . Heat Flow Errors 2 | . 1 1 Energy Discharges 3 | . 2 1 Data Loss (minor) 2 | . 2 . Data Loss (major) 2 | . 1 1 Alerts 1 | . . 1 Overload Shots . | . . . Overflow Damage 18 | . . 18 Projectiles . | . . . Explosions . | . . . Melee 18 | . . 18 Knockbacks . | . . . Impact . | . . . Kinetic . | . . . Secondary . | . . . Self-Inflicted Damage . | . . . Shots . | . . . Rammed . | . . . Targets Rammed . | . . . Kicked . | . . . Crushed . | . . . Highest Temperature 274 | . 186 274 Average Temperature 135 | . 98 152 Received Heat Transfer 557 | . 132 425 Effects 1 | . . 1 Interference 1 | . . 1 Siege Activations . | . . . Martial Activations . | . . . Shielding Activations . | . . . Robots Disrupted . | . . . Combat Hostiles . | . . . Robots Corrupted . | . . . Combat Hostiles . | . . . Parts Fried . | . . . Impact Corruptions . | . . . Robots Melted . | . . . Combat Hostiles . | . . . Parts Melted . | . . . Heat Transferred . | . . . Parts Sabotaged . | . . . Parts Stolen . | . . . Parts Stripped . | . . . Power Chain Reactions . | . . . Alert | -11 -10 -10 ------- Run | Yrd Mat Sub Maximum Alert Level 1 | . 1 . Low Security (%) 77 | 100 75 . Level 1 22 | . 24 . Level 2 . | . . . Level 3 . | . . . Level 4 . | . . . Level 5 . | . . . High Security . | . . . Max Security . | . . . Peak Influence 259 | 10 259 . Initial . | . . . Average 98 | 1 107 . Influence Increases 434 | 15 379 40 Destroy 0b10 Robot/C 240 | . 200 40 Destroy 0b10 Robot/NC 35 | 15 20 . Destroy Leader 48 | . 48 . Successful Hack 34 | . 34 . Disable Machine 15 | . 15 . Destroy Structure 17 | . 17 . Lose Combat Pursuer 45 | . 45 . Influence Decreases 434 | 15 261 158 Entered New Map 58 | . . 58 Time Decay 356 | 15 261 80 Lost Part 20 | . . 20 Squads Dispatched 2 | . 2 . Investigation 1 | . 1 . Extermination . | . . . Reinforcement 1 | . 1 . Assault . | . . . Garrison . | . . . Intercept . | . . . Searches Triggered . | . . . Construction Impeded . | . . . Haulers Reinforced . | . . . Active Scanning Responses . | . . . Cargo Convoy Interrupts . | . . . Stealth | -11 -10 -10 --------- Run | Yrd Mat Sub Distress Signals 2 | . 2 . Communications Jammed . | . . . Distress Signals . | . . . Times Spotted 34 | . 25 9 Peak Tracking Total 8 | . 8 4 Tactical Retreats 4 | . 3 1 Traps | -11 -10 -10 ------- Run | Yrd Mat Sub Traps Triggered 2 | . 2 . Indirectly . | . . . Trap Hack Attempts . | . . . Triggered . | . . . Disarmed . | . . . Reprogrammed . | . . . Reused 1 | . . 1 Traps Extracted . | . . . Installed 1 | . . 1 Triggered . | . . . Most Traps Carried 1 | . . 1 Machines | -11 -10 -10 ---------- Run | Yrd Mat Sub Machines Disabled 1 | . 1 . Max in Single Turn 1 | . 1 . Machines Repaired . | . . . Machines Dismantled . | . . . Machines Sabotaged . | . . . Overloaded Fab Kills . | . . . Hacking | -11 -10 -10 --------- Run | Yrd Mat Sub Machines Accessed 10 | . 10 . Terminals 8 | . 8 . Fabricators . | . . . Repair Stations 1 | . 1 . Recycling Units 1 | . 1 . Scanalyzers . | . . . Garrison Access . | . . . Total Hacks 32 | . 32 . Successful 17 | . 17 . Failed 15 | . 15 . Catastrophic . | . . . Database Lockouts . | . . . Manual 24 | . 24 . Terminals 28 | . 28 . Fabricators . | . . . Repair Stations 2 | . 2 . Recycling Units 2 | . 2 . Scanalyzers . | . . . Garrison Access . | . . . Terminal Hacks 5 | . 5 . Part Schematic 1 | . 1 . Robot Analysis 2 | . 2 . Terminal Index 1 | . 1 . Zone Layout 1 | . 1 . Fabricator Hacks . | . . . Repair Station Hacks 2 | . 2 . Scan Component 1 | . 1 . Repair 1 | . 1 . Recycling Unit Hacks 1 | . 1 . Retrieve Components 1 | . 1 . Scanalyzer . | . . . Garrison Access Hacks . | . . . Unauthorized Hacks 9 | . 9 . Terminals 9 | . 9 . Assimilate 1 | . 1 . Botnet 2 | . 2 . Operators 1 | . 1 . Skim 5 | . 5 . Fabricators . | . . . Repair Stations . | . . . Recycling Units . | . . . Scanalyzers . | . . . Garrison Access . | . . . Data Cores Recovered . | . . . Used . | . . . Hacking Detections 8 | . 8 . Full Trace Events 1 | . 1 . Feedback Events . | . . . Feedback Blocked . | . . . Robot Schematics Acquired . | . . . Robots Built . | . . . Authchips . | . . . Time . | . . . Total Robot Build Rating . | . . . Part Schematics Acquired 1 | . 1 . Parts Built . | . . . Authchips . | . . . Time . | . . . Total Part Build Rating . | . . . Part Studies Acquired . | . . . Parts Repaired 1 | . 1 . Time 26 | . 26 . Parts Recycled . | . . . Recycled Matter . | . . . Retrieved Matter . | . . . Retrieved Components 10 | . 10 . Parts Scanalyzed . | . . . Part Schematics Acquired . | . . . Parts Damaged . | . . . Bothacking | -11 -10 -10 ------------ Run | Yrd Mat Sub Used RIF Installer . | . . . Robots Hacked . | . . . Non-combat . | . . . Combat . | . . . Robot Hacks Applied . | . . . Relay Couplers Released . | . . . Fabnet Peak Effective % . | . . . Robots Rewired . | . . . Allies Hacked . | . . . Hacks Repelled . | . . . Allies | -11 -10 -10 -------- Run | Yrd Mat Sub Total Allies 1 | . 1 . Largest Group 1 | . 1 . Highest-Rated Group 10 | . 10 . Highest-Rated Ally 10 | . 10 . Total Orders . | . . . Ally Attacks . | . . . Total Damage . | . . . Kills . | . . . Allies Corrupted . | . . . Allies Melted . | . . . X0-1V1 Amusement Gains 7 | . 7 . Average Entertainment 4 | . 7 4 Good Acts 2 | . . 2 Bad Acts 3 | . . 3 Intel | -11 -10 -10 ------- Run | Yrd Mat Sub Active Infowar (turns) 264 | 5 259 . Seismic 264 | 5 259 . Robot Analysis Total 2 | . 2 . Derelict Logs Recovered 1 | . . 1 Drone Launches . | . . . Drone Recoveries . | . . . Exploration | -11 -10 -10 ------------- Run | Yrd Mat Sub Turns Passed 991 | 65 730 196 Spaces Moved 922 | 43 685 194 Core 693 | 43 650 . Treads 43 | . 35 8 Legs . | . . . Wheels . | . . . Hover . | . . . Flight 186 | . . 186 Fastest Speed 37 | 50 50 37 Average Speed 54 | 50 58 42 Slowest Speed 160 | 50 160 160 Overloaded Moves . | . . . Propulsion Burnouts . | . . . Robots Hopped 1 | . . 1 Potential Cave-ins . | . . . Cave-ins Triggered . | . . . Exploration Rate (%) 37 | 3 95 15 Regions Visited 2 Branch Regions 1 Pre-discovered Areas 2 | . 1 1 Known Exits Taken 1 | . 1 . Unknown Exits Taken 1 | 1 . . Scrap Searched . | . . . Spaces Dug . | . . . Terrain Destroyed 15 | . 15 . Melee . | . . . Projectile . | . . . AOE 15 | . 15 . Terrain Rammed . | . . . Walls Destroyed . | . . . Machines Disabled . | . . . Actions | -11 -10 -10 --------- Run | Yrd Mat Sub Total 1235 | 65 926 244 Wait 128 | . 123 5 Move 918 | 42 684 192 Hop 1 | . . 1 Pick Up 11 | 1 10 . Fast Attach 20 | 4 14 2 Attach 5 | . 3 2 Detach 4 | . 3 1 Swap 5 | . 4 1 Drop 18 | . 14 4 Fire 105 | 18 71 16 Melee 19 | . . 19 Ram . | . . . Kick . | . . . Crush . | . . . Escape Stasis . | . . . Rewire . | . . . Trap 1 | . . 1 Miscellaneous . | . . . Route ------- -11/Scrapyard -10/Materials (discovered 6 exits: *Mat x3 / *Min x2 / *Sub) -10/Subcaves (discovered 2 exits: *Mat x2) History --------- Turn | Location | Event 5 | -11/Scrapyard | Discovered new exit (range 16) 66 | -11/Scrapyard | Entered Materials 155 | -10/Materials | Discovered new exit (range 14) 259 | -10/Materials | Discovered new exit (range 15) 339 | -10/Materials | Discovered new exit (range 16) 343 | -10/Materials | Discovered new exit (range 16) 348 | -10/Materials | Build established: Mutant 414 | -10/Materials | Learned location of Mines (-9) 444 | -10/Materials | Destroyed 10 combat bots 450 | -10/Materials | Discovered new exit (range 13) 502 | -10/Materials | Repaired Lgt. Treads 552 | -10/Materials | Identified exit to Mines 552 | -10/Materials | Identified exit to Materials 566 | -10/Materials | Derelicts attacked the area 606 | -10/Materials | Identified exit to Subcaves 606 | -10/Materials | Learned location of 2 exits from Materials 652 | -10/Materials | Learned location of 2 exits from Materials 793 | -10/Materials | Prayed at D.C.S.S. Altar Unit 794 | -10/Materials | Learned Storage trap positions 796 | -10/Materials | Entered Subcaves 797 | -10/Subcaves | Approached by a straggling Scientist 797 | -10/Subcaves | Identified exit to Materials 836 | -10/Subcaves | X0-1V1 sent hostile S-10 Pest (x3) 868 | -10/Subcaves | Learned location of Storage (-8) 914 | -10/Subcaves | A swath of the cavern ceiling suddenly collapsed 936 | -10/Subcaves | X0-1V1 sent you into danger 969 | -10/Subcaves | Core integrity fell below 50% 987 | -10/Subcaves | Core integrity fell below 20% 992 | -10/Subcaves | Destroyed by K3-ZNJ(R) with Subdweller Machine Gun Last Messages --------------- Prototype Device suddenly appears amidst shimmering waves of color. 00904_ Acquired Prototype Device. 00904_ Identified X0-1V1's Piety Tracker. 00913_ Flight Unit destroyed. 00914_ Y-45 Defender crushed by falling debris. A swath of the cavern ceiling suddenly collapses. 00916_ System corrupted: Heat flow error (+299). 00936_ X0-1V1: "Enjoy the ride!" 00941_ Dropped Explosive Trap. 00942_ Subatomizers dissect the Sub. Beam Cannon, destroying it. 00942_ Installed Explosive Trap. 00943_ Acquired 15 matter. 00954_ System corrupted: IFF burst signal emitted. 00962_ Flight Unit destroyed. 00976_ Imp. Assault Rifle destroyed. 00992_ X0-1V1 giggles madly! Map ----- +----------------------------------------------------+ | ###??# #???????? ??????????????? | | #????# #????????? #??????????????? | | ????## ###??####### ???????????????? | | ###?# ###???## #???????????????? | | #?#### ####### #????????????????? | | #????# #????????????????? | | ##???# ###??????????????? | | ##### ## ##?????????????? | | ## #?????????????? | | #?????????????? | | #?????????????? | | #??????????????? | | ## # #??????????????? | | ### ## #### ##??????????????? | | ## ## ### ##??# #???????????????? | | ?## ?## ## #???# #???????????????? | | ??? ###?# ### #??# ##???????????????? | | ??# ##???###?## ### ##???????????????? | | ?# ##?????????###### #???????????????? | | ?# #???????????????## #???????????????? | | ?# ?????????????### ##???????????????? | | ?? ?????????????# #????????????????? | | ?? ????????????## ####?????????????? | | ?? ????????????# # # #?????????????? | | ??? ???????????# #?????????????? | | ???? ?????????????## ##@ #?????????????? | | ????#??????????????# ## %R #?????????????? | | ???????????????????# ## ! ##?????????????? | | ??????????????????## ## #??????????????? | | ?????????????????## ## ##?????????????? | | ?????????????????# # #?????????????? | | ?????????????????## #?????????????? | | ??????????????????### #?????????????? | | ???????????????????## ##?????????????? | | ???????????????????# ##??????????????? | | ???????????????????#" # #??????????????? | | ???????????????????#"" ##??????????????? | | ???????????????????##"" ##??????????????? | | ???????????????????##" =< #??????????????? | | ???????????????????#" [%& ##??????????????? | | ???????????????????# * #???????????????? | | ???????????????????## ]![##???????????????? | | ????????????????????###%##????????????????? | | ??????????????? """##*=#?????????????????? | | ???????????????? """" ##????????????????? | | ????????????????##"" # #????????????????? | | ?????????????????#" ## ##????????????????? | | ?????????????????#" = &"#????????????????? | | ????????????????# ##] #????????????????? | | ????????????????####?#==####??????????????? | +----------------------------------------------------+ Best States ------------- Heat Dissipation 25 Energy Generation 14 Energy Capacity 125 Matter Stores 300 Matter Capacity 300 Sight Range 16 Terrain Scan Density 10 Armor Coverage 800 Evasion (%) 62 Recoil Reduction 2 Item Schematics ----------------- ECM Suite | -10/Materials | Hacked Robot Schematics ------------------ None Fabricated ------------ Nothing Repaired ---------- Lgt. Treads | 12% | -10/Materials Studied --------- None Alien Tech Used ----------------- None Achievements -------------- None Challenges ------------ None Game ------ Seed StealthFireSuperbattery Manual? 0 Play Time 00:18:29 Cumulative 396.3 hours Start 2026.09.04 @ 17:07:57 End 2026.09.04 @ 17:23:47 Sessions 1 Manual Loads 0 Difficulty Rogue Special Mode None Game No. 192 Rogue 192 Adventurer 0 Explorer 0 Win Type - Total 41 Types 20/1/9/2/5/1/1/0/0/2 Lore% 90 Gallery% 80 Achievement% 87 Wizard Run 0 Options --------- Layout 1 ASCII 0 Keyboard 0 Movement Numpad Keybinds 0 Fullscreen 1 Font 24/Smallcaps Map View 50x35 Zoom Use 0% Tactical HUD 1 Map Filters NONE Filters NONE Steam 1 RUN: dbb4f3e6-265b-4c50-b529-520db0b7b82a